fUST/lending_fUST_20251012
["ID","MTS","AMOUNT","RATE_DAILY","PERIOD"]
[390936584,1760224655562,-500.0,0.00022382,2]
[390936585,1760224655647,-500.0,0.00022382,2]
[390936586,1760224655848,-500.0,0.00022382,2]
[390936587,1760224655928,-500.0,0.00022382,2]
[390936588,1760224656017,-500.0,0.00022382,2]
[390936589,1760224656104,-500.0,0.00022382,2]
[390936590,1760224656188,-500.0,0.00022382,2]
[390936591,1760224656286,-500.0,0.00022382,2]
[390936592,1760224656372,-500.0,0.00022382,2]
[390936593,1760224656452,-373.14,0.00022382,2]
[390936594,1760224656532,-228.53313983,0.00022382,2]
[390936595,1760224656615,-500.0,0.00022382,2]
[390936596,1760224656702,-296.66372034,0.00022382,2]
[390936597,1760224656799,-203.33627966,0.00022382,2]
[390936598,1760224656887,-500.0,0.00022382,2]
[390936599,1760224656975,-500.0,0.00022382,2]
[390936600,1760224657075,-500.0,0.00022382,2]
[390936601,1760224657166,-500.0,0.00022382,2]
[390936602,1760224657247,-500.0,0.00022382,2]
[390936603,1760224657333,-500.0,0.00022382,2]
[390936604,1760224657418,-500.0,0.00022382,2]
[390936605,1760224657502,-564.14822968,0.00022382,2]
[390936606,1760224657587,-500.0,0.00022382,2]
[390936607,1760224658255,-500.0,0.00022382,2]
[390936608,1760224658335,-500.0,0.00022382,2]
[390936609,1760224658424,-249.42,0.00022382,2]
[390936610,1760224658511,-523.43,0.00022382,2]
[390936611,1760224658594,-523.43,0.00022382,2]
[390936612,1760224658675,-523.43,0.00022382,2]
[390936613,1760224658758,-523.43,0.00022382,2]
[390936614,1760224658838,-523.43,0.00022382,2]
[390936615,1760224658926,-523.43,0.00022382,2]
[390936616,1760224659008,-523.43,0.00022382,2]
[390936617,1760224659451,-602.68,0.00022382,2]
[390936618,1760224659536,-523.43,0.00022382,2]
[390936619,1760224659619,-523.43,0.00022382,2]
[390936620,1760224659696,-523.43,0.00022382,2]
[390936621,1760224659772,-523.43,0.00022382,2]
[390936622,1760224659851,-523.43,0.00022382,2]
[390936623,1760224659938,-523.43,0.00022382,2]
[390936624,1760224660022,-500.0,0.00022382,2]
[390936625,1760224660107,-500.0,0.00022382,2]
[390936626,1760224660189,-13.49,0.00022382,2]
[390936627,1760224660591,-486.51,0.00022382,2]
[390936628,1760224660669,-500.0,0.00022382,2]
[390936629,1760224660746,-500.0,0.00022382,2]
[390936630,1760224660825,-500.0,0.00022382,2]
[390936631,1760224660908,-500.0,0.00022382,2]
[390936632,1760224660985,-500.0,0.00022382,2]
[390936633,1760224661064,-500.0,0.00022382,2]
[390936634,1760224661138,-500.0,0.00022382,2]
[390936635,1760224661213,-500.0,0.00022382,2]
[390936636,1760224661287,-500.0,0.00022382,2]
[390936637,1760224661652,-500.0,0.00022382,2]
[390936638,1760224661731,-500.0,0.00022382,2]
[390936639,1760224661811,-500.0,0.00022382,2]
[390936640,1760224661892,-500.0,0.00022382,2]
[390936641,1760224661972,-500.0,0.00022382,2]
[390936642,1760224662056,-500.0,0.00022382,2]
[390936643,1760224662137,-500.0,0.00022382,2]
[390936644,1760224662216,-572.78,0.00022382,2]
[390936645,1760224662300,-500.0,0.00022382,2]
[390936646,1760224662386,-259.68557898,0.00022382,2]
[390936647,1760224662471,500.0,0.0002238,2]
[390936648,1760224662760,500.0,0.0002238,2]
[390936649,1760224666703,-335.07884204,0.00022382,2]
[390936650,1760224666783,-500.0,0.00022382,2]
[390936651,1760224666864,-500.0,0.00022382,2]
[390936652,1760224666944,-500.0,0.00022382,2]
[390936653,1760224667027,-500.0,0.00022382,2]
[390936654,1760224667103,-500.0,0.00022382,2]
[390936655,1760224667185,-500.0,0.00022382,2]
[390936656,1760224667263,-500.0,0.00022382,2]
[390936657,1760224667482,-500.0,0.00022382,2]
[390936658,1760224667563,-500.0,0.00022382,2]
[390936659,1760224668297,-500.0,0.00022382,2]
[390936660,1760224668380,-500.0,0.00022382,2]
[390936661,1760224668459,-533.54,0.00022382,2]
[390936662,1760224668542,-500.0,0.00022382,2]
[390936663,1760224668623,-500.0,0.00022382,2]
[390936664,1760224668700,-500.0,0.00022382,2]
[390936665,1760224668787,-500.0,0.00022382,2]
[390936666,1760224668870,-500.0,0.00022382,2]
[390936667,1760224668948,-606.56,0.00022382,2]
[390936668,1760224669028,-219.81,0.00022382,2]
[390936669,1760224669132,-280.19,0.00022382,2]
[390936670,1760224669207,-500.0,0.00022382,2]
[390936671,1760224669281,-500.0,0.00022382,2]
[390936672,1760224669356,-500.0,0.00022382,2]
[390936673,1760224669433,-500.0,0.00022382,2]
[390936674,1760224669506,-500.0,0.00022382,2]
[390936675,1760224669585,-500.0,0.00022382,2]
[390936676,1760224669663,-640.38,0.00022382,2]
[390936677,1760224669738,-174.78,0.00022382,2]
[390936678,1760224669821,-500.0,0.00022382,2]
[390936679,1760224670039,-4934.28,0.00022382,2]
[390936680,1760224670536,-4934.28,0.00022382,2]
[390936681,1760224670941,-4934.28,0.00022382,2]
[390936682,1760224671343,-4934.28,0.00022382,2]
[390936683,1760224671545,-4934.28,0.00022382,2]
[390936684,1760224672187,-4934.28,0.00022382,2]
[390936685,1760224680445,-500.0,0.00022381,2]
[390936686,1760224680533,-500.0,0.00022381,2]
[390936687,1760224680614,-500.0,0.00022381,2]
[390936688,1760224680694,-500.0,0.00022381,2]
[390936689,1760224680775,-500.0,0.00022381,2]
[390936690,1760224680856,-500.0,0.00022381,2]
[390936691,1760224680936,-500.0,0.00022381,2]
[390936692,1760224681013,-476.54042099,0.00022381,2]
[390936693,1760224681090,-500.0,0.00022381,2]
[390936694,1760224681171,-500.0,0.00022381,2]
[390936695,1760224681292,-240.14651664,0.00022381,2]
[390936696,1760224681383,-500.0,0.00022381,2]
[390936697,1760224681471,-3573.1084283,0.00022381,2]
[390936698,1760224681558,-500.0,0.00022381,2]
[390936699,1760224681676,373.50011012,0.00022381,2]
[390936700,1760224681748,126.49988988,0.00022381,2]
[390936701,1760224681835,500.0,0.00022381,2]
[390936702,1760224681921,396.7337551,0.00022381,2]
[390936703,1760224683446,500.0,0.00022381,2]
[390936704,1760224683537,500.0,0.00022381,2]
[390936705,1760224683612,500.0,0.00022381,2]
[390936706,1760224683683,500.0,0.00022381,2]
[390936707,1760224685157,500.0,0.00022381,2]
[390936708,1760224686935,500.0,0.00022381,2]
[390936709,1760224687158,500.0,0.00022381,2]
[390936710,1760224687391,500.0,0.00022381,2]
[390936711,1760224687632,500.0,0.00022381,2]
[390936712,1760224687922,500.0,0.00022381,2]
[390936713,1760224688139,500.0,0.00022381,2]
[390936714,1760224688352,500.0,0.00022381,2]
[390936715,1760224688944,500.0,0.00022381,2]
[390936716,1760224689513,-4934.28,0.00022382,2]
[390936717,1760224690617,500.0,0.00022381,2]
[390936718,1760224690874,500.0,0.00022381,2]
[390936719,1760224691311,-4934.28,0.00022382,2]
[390936720,1760224691700,-4934.28,0.00022382,2]
[390936721,1760224692037,-4934.28,0.00022382,2]
[390936722,1760224692356,-4934.28,0.00022382,2]
[390936723,1760224692585,-4934.28,0.00022382,2]
[390936724,1760224692896,500.0,0.00022381,2]
[390936725,1760224695327,-500.0,0.00022381,2]
[390936726,1760224695414,-500.0,0.00022381,2]
[390936727,1760224695493,-500.0,0.00022381,2]
[390936728,1760224695565,-500.0,0.00022381,2]
[390936729,1760224695643,-1065.73,0.00022382,2]
[390936730,1760224696081,-500.0,0.00022381,2]
[390936731,1760224696167,-3868.55,0.00022382,2]
[390936732,1760224696376,-500.0,0.00022381,2]
[390936733,1760224696462,-4065.73,0.00022382,2]
[390936734,1760224701331,-200.0,0.0002238,2]
[390936735,1760224701403,-500.0,0.00022381,2]
[390936736,1760224701492,-500.0,0.00022381,2]
[390936737,1760224701568,-500.0,0.00022381,2]
[390936738,1760224701643,-500.0,0.00022381,2]
[390936739,1760224701717,-500.0,0.00022381,2]
[390936740,1760224701793,-500.0,0.00022381,2]
[390936741,1760224701878,-500.0,0.00022381,2]
[390936742,1760224701963,-500.0,0.00022381,2]
[390936743,1760224702049,-500.0,0.00022381,2]
[390936744,1760224702129,-100.01,0.00022381,2]
[390936745,1760224702462,-399.99,0.00022381,2]
[390936746,1760224702541,-392.51832554,0.00022381,2]
[390936747,1760224702622,-500.0,0.00022381,2]
[390936748,1760224702700,-500.0,0.00022381,2]
[390936749,1760224702780,-500.0,0.00022381,2]
[390936750,1760224702858,-500.0,0.00022381,2]
[390936751,1760224702938,-500.0,0.00022381,2]
[390936752,1760224703024,-500.0,0.00022381,2]
[390936753,1760224703109,-500.0,0.00022381,2]
[390936754,1760224703181,-500.0,0.00022381,2]
[390936755,1760224703485,-500.0,0.00022381,2]
[390936756,1760224703562,-500.0,0.00022381,2]
[390936757,1760224703738,-500.0,0.00022381,2]
[390936758,1760224703820,-500.0,0.00022381,2]
[390936759,1760224703899,-500.0,0.00022381,2]
[390936760,1760224703982,-600.0,0.00022381,2]
[390936761,1760224704064,-868.55,0.00022382,2]
[390936762,1760224704449,-4934.28,0.00022382,2]
[390936763,1760224723719,-1256.64292269,0.00021935,2]
[390936764,1760224727659,150.0,0.00019284,2]
[390936765,1760224728098,150.0,0.00020202,2]
[390936766,1760224728505,168.72,0.0002112,2]
[390936767,1760224804129,150.0,0.00018968,2]
[390936768,1760224804552,150.0,0.00019872,2]
[390936769,1760224805019,156.55,0.00020775,2]
[390936770,1760224805441,208.73,0.00021678,2]
[390936771,1760224866403,-5000.0,0.00021935,2]
[390936772,1760224878596,0.01,0.00019118,2]
[390936773,1760224878672,149.99,0.00019118,2]
[390936774,1760224878954,5000.0,0.00021935,2]
[390936775,1760224879077,150.0,0.00020028,2]
[390936776,1760224879715,150.0,0.00020938,2]
[390936777,1760224880554,182.5,0.00021849,2]
[390936778,1760224909398,556.51280285,0.00021698,2]
[390936779,1760224915631,-5000.0,0.00021935,2]
[390936780,1760224924890,0.01,0.00021935,2]
[390936781,1760224924991,4999.99,0.00021935,2]
[390936782,1760224944753,500.0,0.00030266,60]
[390936783,1760224947262,5000.0,0.00022281,2]
[390936784,1760224952094,150.0,0.00019132,2]
[390936785,1760224952514,150.0,0.00020043,2]
[390936786,1760224952957,150.0,0.00020954,2]
[390936787,1760224968842,-150.3,0.00021865,2]
[390936788,1760224970843,5000.0,0.00021865,2]
[390936789,1760225000002,-5000.0,0.00022058,2]
[390936790,1760225027157,150.0,0.00019246,2]
[390936791,1760225027705,150.0,0.00020163,2]
[390936792,1760225028120,150.0,0.00021079,2]
[390936793,1760225035023,-150.0,0.00021996,2]
[390936794,1760225079889,1622.01375,0.00021376,2]
[390936797,1760225099104,150.0,0.00019153,2]
[390936798,1760225099520,150.0,0.00020065,2]
[390936799,1760225099943,150.0,0.00020978,2]
[390936800,1760225100361,150.0,0.0002189,2]
[390936801,1760225168626,150.0,0.00019153,2]
[390936802,1760225169044,150.0,0.00020066,2]
[390936803,1760225169502,150.0,0.00020978,2]
[390936804,1760225169923,150.0,0.0002189,2]
[390936805,1760225209555,205.10522659,0.00021958,2]
[390936806,1760225210084,-300.0,0.00022056,2]
[390936807,1760225210104,-300.0,0.00022057,2]
[390936808,1760225210124,-300.0,0.00022057,2]
[390936809,1760225210144,-300.0,0.00022057,2]
[390936810,1760225210165,-300.0,0.00022057,2]
[390936811,1760225210186,-1200.0,0.00022057,2]
[390936812,1760225210207,-150.0,0.00022058,2]
[390936813,1760225210230,-402.83141351,0.00022279,2]
[390936814,1760225210249,-1993.68,0.00022281,5]
[390936815,1760225210269,-622.98,0.00022371,10]
[390936816,1760225210288,-593.36,0.00022371,10]
[390936817,1760225210307,-3102.441645,0.00022373,2]
[390936818,1760225210327,-1200.0,0.00022377,2]
[390936819,1760225210345,-530.8426417,0.00022378,2]
[390936820,1760225210364,-500.0,0.00022378,2]
[390936821,1760225210388,-416.62800029,0.00022378,2]
[390936822,1760225211333,5000.0,0.00021996,2]
[390936824,1760225236379,150.0,0.00019087,2]
[390936825,1760225236768,150.0,0.00019996,2]
[390936826,1760225237551,150.0,0.00020905,2]
[390936827,1760225240220,-150.0,0.00021814,2]
[390936828,1760225264980,9700.01,0.00018,2]
[390936829,1760225265059,1480.45993724,0.00018,2]
[390936832,1760225290531,5014.0,0.00018,2]
[390936834,1760225297363,2110.84919684,0.000176,2]
[390936836,1760225302407,150.0,0.00018963,2]
[390936837,1760225302836,150.0,0.00019866,2]
[390936838,1760225303314,150.0,0.00020768,2]
[390936839,1760225303740,150.0,0.00021671,2]
[390936840,1760225306088,9400.01,0.00017,2]
[390936841,1760225306158,10000.01,0.00017,2]
[390936842,1760225306222,10000.01,0.00017,2]
[390936843,1760225306286,867.04168568,0.00017,2]
[390936844,1760225307893,9132.96831432,0.0002,20]
[390936845,1760225307966,10000.01,0.0002,20]
[390936846,1760225308251,9800.60685137,0.0002,20]
[390936847,1760225308340,199.40314863,0.0002,7]
[390936848,1760225308408,52.61285137,0.0002,7]
[390936849,1760225308591,9947.39714863,0.00015,2]
[390936850,1760225308670,10000.01,0.00015,2]
[390936851,1760225308733,9028.0200298,0.00015,2]
[390936852,1760225308831,971.9899702,0.0002,2]
[390936853,1760225308892,10000.01,0.0002,2]
[390936854,1760225308914,819.44760286,0.0002,2]
[390936855,1760225308987,1372.87739299,0.0002061,2]
[390936857,1760225310026,587.69329788,0.000149,2]
[390936859,1760225310436,1000.0,0.0001,2]
[390936860,1760225310986,3235.59160572,0.00018,2]
[390936861,1760225311871,840.078227,0.0002,120]
[390936862,1760225314097,213.23869478,0.00016,2]
[390936864,1760225316558,525.16671345,0.0001,2]
[390936865,1760225317290,260.70401695,0.00015,2]
[390936867,1760225351277,316.671848,0.00021375,2]
[390936868,1760225371593,150.0,0.00019739,2]
[390936869,1760225372038,150.0,0.00020679,2]
[390936870,1760225372452,150.0,0.00021619,2]
[390936871,1760225427990,4998.6371211,0.00021814,2]
[390936872,1760225428066,1.3628789,0.00021814,2]
[390936909,1760225432689,-420.05512422,0.00022,5]
[390936912,1760225432699,-352.47748683,0.00022277,2]
[390936914,1760225432708,-1200.0,0.00022368,2]
[390936916,1760225432717,-238.46,0.00022369,10]
[390936918,1760225432731,-300.0,0.00022375,2]
[390936920,1760225432740,-300.0,0.00022375,2]
[390936922,1760225432749,-1200.0,0.00022376,2]
[390936923,1760225432758,-500.0,0.00022376,2]
[390936925,1760225432768,-500.0,0.00022376,2]
[390936928,1760225432777,-500.0,0.00022376,2]
[390936930,1760225432786,-500.0,0.00022376,2]
[390936932,1760225432795,-296.64932885,0.00022376,2]
[390936933,1760225432804,-629.97,0.00022376,2]
[390936935,1760225432813,-537.77296405,0.00022376,2]
[390936938,1760225432822,-500.0,0.00022376,2]
[390936939,1760225432832,-569.83212201,0.00022376,2]
[390936941,1760225432841,-2374.78297404,0.00022377,2]
[390936998,1760225436798,-454.72,0.00022369,10]
[390937018,1760225438626,150.0,0.00019739,2]
[390937019,1760225438684,-500.0,0.00022376,2]
[390937020,1760225438698,-500.0,0.00022376,2]
[390937021,1760225438707,-500.0,0.00022376,2]
[390937022,1760225438717,-500.0,0.00022376,2]
[390937023,1760225438730,-500.0,0.00022376,2]
[390937024,1760225438742,-99.03668629,0.00022376,2]
[390937025,1760225438755,-400.96331371,0.00022376,2]
[390937026,1760225438766,-23115.19798365,0.00022377,2]
[390937027,1760225438776,-500.0,0.00022377,2]
[390937028,1760225438786,-500.0,0.00022377,2]
[390937029,1760225438795,-500.0,0.00022377,2]
[390937030,1760225438804,-500.0,0.00022377,2]
[390937031,1760225438813,-500.0,0.00022377,2]
[390937032,1760225438822,-500.0,0.00022377,2]
[390937033,1760225438833,-500.0,0.00022377,2]
[390937034,1760225438842,-500.0,0.00022377,2]
[390937035,1760225438851,-500.0,0.00022377,2]
[390937036,1760225438862,-500.0,0.00022377,2]
[390937037,1760225438871,-500.0,0.00022377,2]
[390937038,1760225438881,-500.0,0.00022377,2]
[390937039,1760225438890,-500.0,0.00022377,2]
[390937040,1760225438899,-500.0,0.00022377,2]
[390937041,1760225438909,-500.0,0.00022377,2]
[390937042,1760225438919,-500.0,0.00022377,2]
[390937043,1760225438929,-248.0167481,0.00022377,2]
[390937044,1760225438938,-500.0,0.00022377,2]
[390937045,1760225438948,-500.0,0.00022377,2]
[390937046,1760225438957,-500.0,0.00022377,2]
[390937047,1760225438968,-208.01,0.00022377,2]
[390937048,1760225438978,-500.0,0.00022377,2]
[390937049,1760225438988,-467.81015037,0.00022377,2]
[390937050,1760225438997,-500.0,0.00022377,2]
[390937051,1760225439006,-500.0,0.00022377,2]
[390937052,1760225439016,-500.0,0.00022377,2]
[390937053,1760225439026,-255.48,0.00022377,2]
[390937054,1760225439036,-500.0,0.00022377,2]
[390937055,1760225439046,-500.0,0.00022377,2]
[390937056,1760225439055,-500.0,0.00022377,2]
[390937057,1760225439066,-500.0,0.00022377,2]
[390937058,1760225439075,-500.0,0.00022377,2]
[390937059,1760225439084,-500.0,0.00022377,2]
[390937060,1760225439094,-500.0,0.00022377,2]
[390937061,1760225439104,-500.0,0.00022377,2]
[390937062,1760225439114,-500.0,0.00022377,2]
[390937063,1760225439124,-500.0,0.00022377,2]
[390937064,1760225439133,-500.0,0.00022377,2]
[390937065,1760225439143,-500.0,0.00022377,2]
[390937066,1760225439153,-500.0,0.00022377,2]
[390937067,1760225439162,-500.0,0.00022377,2]
[390937068,1760225439172,-500.0,0.00022377,2]
[390937069,1760225439181,-500.0,0.00022377,2]
[390937070,1760225439191,-500.0,0.00022377,2]
[390937071,1760225439200,-500.0,0.00022377,2]
[390937072,1760225439211,-263.13,0.00022377,2]
[390937073,1760225439223,-500.0,0.00022377,2]
[390937074,1760225439233,-500.0,0.00022377,2]
[390937075,1760225439243,-500.0,0.00022377,2]
[390937076,1760225439253,-500.0,0.00022377,2]
[390937077,1760225439264,-500.0,0.00022377,2]
[390937078,1760225439273,-500.0,0.00022377,2]
[390937079,1760225439284,-500.0,0.00022377,2]
[390937080,1760225439294,-500.0,0.00022377,2]
[390937081,1760225439304,-500.0,0.00022377,2]
[390937082,1760225439315,-675.0,0.00022377,2]
[390937083,1760225439325,-675.0,0.00022377,2]
[390937084,1760225439335,-675.0,0.00022377,2]
[390937085,1760225439344,-675.0,0.00022377,2]
[390937086,1760225439354,-675.0,0.00022377,2]
[390937087,1760225439364,-675.0,0.00022377,2]
[390937088,1760225439375,-675.0,0.00022377,2]
[390937089,1760225439384,-675.0,0.00022377,2]
[390937090,1760225439394,-675.0,0.00022377,2]
[390937091,1760225439403,-675.0,0.00022377,2]
[390937092,1760225439413,-675.0,0.00022377,2]
[390937093,1760225439423,-675.0,0.00022377,2]
[390937094,1760225439434,-675.0,0.00022377,2]
[390937095,1760225439444,-675.0,0.00022377,2]
[390937096,1760225439454,-675.0,0.00022377,2]
[390937097,1760225439464,-675.0,0.00022377,2]
[390937098,1760225439477,-675.0,0.00022377,2]
[390937099,1760225439486,-675.0,0.00022377,2]
[390937100,1760225439495,-675.0,0.00022377,2]
[390937101,1760225439505,-675.0,0.00022377,2]
[390937102,1760225439516,-675.0,0.00022377,2]
[390937103,1760225439525,-675.0,0.00022377,2]
[390937104,1760225439535,-675.0,0.00022377,2]
[390937105,1760225439544,-675.1,0.00022377,2]
[390937106,1760225439554,-780.85,0.00022377,2]
[390937107,1760225439564,-780.85,0.00022377,2]
[390937108,1760225439573,-780.85,0.00022377,2]
[390937109,1760225439583,-780.85,0.00022377,2]
[390937110,1760225439592,-780.85,0.00022377,2]
[390937111,1760225439602,-780.85,0.00022377,2]
[390937112,1760225439611,-780.85,0.00022377,2]
[390937113,1760225439621,-780.85,0.00022377,2]
[390937114,1760225439630,-780.85,0.00022377,2]
[390937115,1760225439640,-780.85,0.00022377,2]
[390937116,1760225439649,-780.85,0.00022377,2]
[390937117,1760225439659,-780.85,0.00022377,2]
[390937118,1760225439668,-780.85,0.00022377,2]
[390937119,1760225439680,-780.85,0.00022377,2]
[390937120,1760225439693,-780.85,0.00022377,2]
[390937121,1760225439703,-83.37199971,0.00022378,2]
[390937122,1760225439713,-500.0,0.00022378,2]
[390937123,1760225439725,-500.0,0.00022378,2]
[390937124,1760225439735,-500.0,0.00022378,2]
[390937125,1760225439744,-500.0,0.00022378,2]
[390937126,1760225439753,-500.0,0.00022378,2]
[390937127,1760225439764,-500.0,0.00022378,2]
[390937128,1760225439773,-500.0,0.00022378,2]
[390937129,1760225439782,-500.0,0.00022378,2]
[390937130,1760225439792,-504.0,0.00022378,2]
[390937131,1760225439802,-500.0,0.00022378,2]
[390937132,1760225439813,-500.0,0.00022378,2]
[390937133,1760225439823,-500.0,0.00022378,2]
[390937134,1760225439833,-500.0,0.00022378,2]
[390937135,1760225439842,-500.0,0.00022378,2]
[390937136,1760225439852,-500.0,0.00022378,2]
[390937137,1760225439862,-155.87683496,0.00022378,2]
[390937138,1760225439872,-500.0,0.00022378,2]
[390937139,1760225439882,-500.0,0.00022378,2]
[390937140,1760225439892,-500.0,0.00022378,2]
[390937141,1760225439901,-500.0,0.00022378,2]
[390937142,1760225439911,-500.0,0.00022378,2]
[390937143,1760225439920,-500.0,0.00022378,2]
[390937144,1760225439930,-500.0,0.00022378,2]
[390937145,1760225439939,-500.0,0.00022378,2]
[390937146,1760225439949,-316.70025649,0.00022378,2]
[390937147,1760225439959,-500.0,0.00022378,2]
[390937148,1760225439968,-500.0,0.00022378,2]
[390937149,1760225439981,-500.0,0.00022378,2]
[390937150,1760225439991,-500.0,0.00022378,2]
[390937151,1760225440000,-500.0,0.00022378,2]
[390937152,1760225440010,-500.0,0.00022378,2]
[390937153,1760225440020,-500.0,0.00022378,2]
[390937154,1760225440029,-500.0,0.00022378,2]
[390937155,1760225440039,-500.0,0.00022378,2]
[390937156,1760225440049,-500.0,0.00022378,2]
[390937157,1760225440058,-500.0,0.00022378,2]
[390937158,1760225440068,-500.0,0.00022378,2]
[390937159,1760225440077,-500.0,0.00022378,2]
[390937160,1760225440087,-400.0,0.00022378,2]
[390937161,1760225440096,-500.0,0.00022379,2]
[390937162,1760225440106,-500.0,0.00022379,2]
[390937163,1760225440115,-482.94383474,0.00022379,2]
[390937164,1760225440125,-500.0,0.00022379,2]
[390937165,1760225440134,-500.0,0.00022379,2]
[390937166,1760225440144,-500.0,0.00022379,2]
[390937167,1760225440154,-500.0,0.00022379,2]
[390937168,1760225440164,-500.0,0.00022379,2]
[390937169,1760225440175,-500.0,0.00022379,2]
[390937170,1760225440187,-500.0,0.00022379,2]
[390937171,1760225440196,-210.0564259,0.00022379,2]
[390937172,1760225440206,-500.0,0.00022379,2]
[390937173,1760225440216,-500.0,0.00022379,2]
[390937174,1760225440227,-500.0,0.00022379,2]
[390937175,1760225440236,-500.0,0.00022379,2]
[390937176,1760225440251,-500.0,0.00022379,2]
[390937177,1760225440261,-500.0,0.00022379,2]
[390937178,1760225440271,-500.0,0.00022379,2]
[390937179,1760225440281,-500.0,0.00022379,2]
[390937180,1760225440291,-500.0,0.00022379,2]
[390937181,1760225440300,-500.0,0.00022379,2]
[390937182,1760225440310,-500.0,0.00022379,2]
[390937183,1760225440320,-500.0,0.00022379,2]
[390937184,1760225440329,-500.0,0.00022379,2]
[390937185,1760225440339,-164.95087295,0.00022379,2]
[390937186,1760225440349,-500.0,0.00022379,2]
[390937187,1760225440359,-500.0,0.00022379,2]
[390937188,1760225440369,-500.0,0.00022379,2]
[390937189,1760225440378,-500.0,0.00022379,2]
[390937190,1760225440388,-500.0,0.00022379,2]
[390937191,1760225440398,-500.0,0.00022379,2]
[390937192,1760225440407,-500.0,0.00022379,2]
[390937193,1760225440416,-500.0,0.00022379,2]
[390937194,1760225440425,-500.0,0.00022379,2]
[390937195,1760225440435,-500.0,0.00022379,2]
[390937196,1760225440444,-500.0,0.00022379,2]
[390937197,1760225440453,-500.0,0.00022379,2]
[390937198,1760225440463,-500.0,0.00022379,2]
[390937199,1760225440474,-500.0,0.00022379,2]
[390937200,1760225440484,-500.0,0.00022379,2]
[390937201,1760225440493,-500.0,0.00022379,2]
[390937202,1760225440502,-500.0,0.00022379,2]
[390937203,1760225440512,-500.0,0.00022379,2]
[390937204,1760225440521,-500.0,0.00022379,2]
[390937205,1760225440531,-494.25367934,0.00022379,2]
[390937206,1760225440540,-500.0,0.00022379,2]
[390937207,1760225440549,-500.0,0.00022379,2]
[390937208,1760225440558,-500.0,0.00022379,2]
[390937209,1760225440567,-500.0,0.00022379,2]
[390937210,1760225440576,-500.0,0.00022379,2]
[390937211,1760225440586,-500.0,0.00022379,2]
[390937212,1760225440595,-500.0,0.00022379,2]
[390937213,1760225440604,-173.6,0.00022379,2]
[390937214,1760225440613,-500.0,0.00022379,2]
[390937215,1760225440622,-500.0,0.00022379,2]
[390937216,1760225440630,-500.0,0.00022379,2]
[390937217,1760225440639,-500.0,0.00022379,2]
[390937218,1760225440648,-500.0,0.00022379,2]
[390937219,1760225440657,-500.0,0.00022379,2]
[390937220,1760225440670,-500.0,0.00022379,2]
[390937221,1760225440689,-603.33675503,0.00022379,2]